bitfinex/quotes_BTCUSD_20250110
["timestamp","ask_amount","ask_price","bid_price","bid_amount"]
[1736476980945,0.002,93558.0,93549.0,0.0034608]
[1736476981116,0.002,93558.0,93549.0,0.00360745]
[1736476981321,0.213759,93563.0,93549.0,0.00360745]
[1736476981555,0.427519,93563.0,93549.0,0.00360745]
[1736476981973,0.427519,93563.0,93549.0,0.00121541]
[1736476982204,0.427519,93563.0,93549.0,0.00321541]
[1736476982411,0.15,93557.0,93549.0,0.00014665]
[1736476983808,0.15,93558.0,93549.0,0.00014665]
[1736476984941,0.15,93561.0,93550.0,0.00239195]
[1736476985148,0.15,93561.0,93550.0,0.00346076]
[1736476985673,0.1700734,93561.0,93550.0,0.00346076]
[1736476987481,0.15,93557.0,93550.0,0.00239195]
[1736476987684,0.15,93553.0,93550.0,0.00239195]
[1736476987861,0.15,93553.0,93549.0,0.00014665]
[1736476989023,0.15,93553.0,93549.0,0.00314665]
[1736476989705,0.213775,93556.0,93549.0,0.00014665]
[1736476990894,0.213775,93556.0,93549.0,0.00114665]
[1736476991095,0.213775,93556.0,93549.0,0.00414665]
[1736476991437,0.213775,93556.0,93549.0,0.00014665]
[1736476991838,0.213775,93556.0,93549.0,0.00214665]
[1736476992895,0.213775,93556.0,93549.0,0.00314665]
[1736476993101,0.427571,93552.0,93549.0,0.00314665]
[1736476993307,0.213785,93552.0,93549.0,0.00314665]
[1736476993512,0.213771,93558.0,93549.0,0.00314665]
[1736476993665,0.213775,93556.0,93549.0,0.00314665]
[1736476993865,0.213775,93556.0,93549.0,0.00214665]
[1736476994709,0.213775,93556.0,93549.0,0.00014665]
[1736476995077,0.213775,93556.0,93549.0,0.00314665]
[1736476995534,0.213775,93556.0,93549.0,0.00014665]
[1736476995895,0.213787,93551.0,93549.0,0.00114665]
[1736476997167,0.213787,93551.0,93549.0,0.00214665]
[1736476997371,0.213775,93556.0,93549.0,0.00214665]
[1736476997748,0.213775,93556.0,93549.0,0.00114665]
[1736476998069,0.15,93566.0,93549.0,0.00114665]
[1736476998070,0.00106884,93555.0,93549.0,0.00114665]
[1736476998276,0.213779,93555.0,93549.0,0.00514665]
[1736476998484,0.213779,93555.0,93549.0,0.00114665]
[1736476999037,0.213779,93555.0,93549.0,0.00014665]
[1736476999239,0.15,93554.0,93549.0,0.00014665]
[1736476999466,0.15,93554.0,93549.0,0.00214665]
[1736476999867,0.213782,93553.0,93549.0,0.00214665]
[1736477000098,0.213782,93553.0,93549.0,0.00314665]
[1736477000614,0.213782,93553.0,93549.0,0.00214665]
[1736477001064,0.23208189,93553.0,93549.0,0.00014665]
[1736477001259,0.23208189,93553.0,93549.0,0.00214665]
[1736477001432,0.213782,93553.0,93549.0,0.00014665]
[1736477002458,0.4469085,93553.0,93549.0,0.00014665]
[1736477003826,0.2331265,93553.0,93549.0,0.00014665]
[1736477004062,0.2341265,93553.0,93549.0,0.00014665]
[1736477005344,0.2331265,93553.0,93549.0,0.00014665]
[1736477006975,0.0193445,93553.0,93549.0,0.00014665]
[1736477007466,0.15,93554.0,93549.0,0.00014665]
[1736477007929,0.15,93552.0,93549.0,0.00014665]
[1736477008148,0.213787,93551.0,93549.0,0.00014665]
[1736477010018,0.24662326,93551.0,93549.0,0.00014665]
[1736477010835,0.213787,93551.0,93549.0,0.00014665]
[1736477012033,0.00106884,93550.0,93549.0,0.00014665]
[1736477012256,0.00147043,93550.0,93549.0,0.00014665]
[1736477014386,0.15040159,93550.0,93549.0,0.00014665]
[1736477014706,0.15147043,93550.0,93549.0,0.00014665]
[1736477015682,0.21133015,93550.0,93549.0,0.00014665]
[1736477015893,0.21026131,93550.0,93549.0,0.00014665]
[1736477020004,0.15040159,93550.0,93549.0,0.00014665]
[1736477020203,0.15147043,93550.0,93549.0,0.00014665]
[1736477022181,0.15106884,93550.0,93549.0,0.00014665]
[1736477022674,0.15,93550.0,93549.0,0.00014665]
[1736477024418,0.15106884,93550.0,93549.0,0.00014665]
[1736477027959,0.2111324,93550.0,93549.0,0.00014665]
[1736477028179,0.275035,93550.0,93549.0,0.00014665]
[1736477028401,0.213851,93523.0,93520.0,0.0783]
[1736477028629,0.363855,93521.0,93520.0,0.0783]
[1736477030281,0.213828,93533.0,93520.0,0.09081]
[1736477030483,0.02446363,93528.0,93522.0,0.0773]
[1736477030685,0.14405884,93536.0,93527.0,0.21384]
[1736477030900,0.213799,93546.0,93530.0,0.213835]
[1736477031105,0.02479539,93536.0,93532.0,0.0773]
[1736477031306,0.213799,93546.0,93532.0,0.0773]
[1736477031307,0.15,93543.0,93532.0,0.0773]
[1736477031713,0.05,93850.0,93532.0,0.0773]
[1736477031714,0.15,93539.0,93532.0,0.0773]
[1736477032037,0.15040799,93539.0,93532.0,0.0773]
[1736477032212,0.15,93537.0,93532.0,0.0773]
[1736477032520,0.15,93535.0,93533.0,0.00210533]
[1736477032722,0.15,93535.0,93532.0,0.0793]
[1736477032897,0.15,93535.0,93532.0,0.0773]
[1736477033456,0.15,93533.0,93532.0,0.0773]
[1736477033638,0.15,93533.0,93532.0,0.0783]
[1736477034038,0.15,93533.0,93532.0,0.0773]
[1736477034245,0.15,93533.0,93532.0,0.0823]
[1736477034450,0.15,93537.0,93532.0,0.0823]
[1736477034692,0.15,93537.0,93532.0,0.0773]
[1736477034895,0.15,93535.0,93532.0,0.0823]
[1736477035049,0.15,93535.0,93532.0,0.0843]
[1736477035251,0.15,93535.0,93532.0,0.0793]
[1736477035675,0.15,93535.0,93532.0,0.0803]
[1736477035875,0.15,93535.0,93532.0,0.0813]
[1736477037127,0.1753241,93535.0,93532.0,0.0783]
[1736477037343,0.1753241,93535.0,93532.0,0.0813]
[1736477037597,0.0253241,93535.0,93532.0,0.0823]
[1736477037798,0.15,93539.0,93532.0,0.0823]
[1736477037981,0.15,93537.0,93532.0,0.0823]
[1736477038757,0.15,93537.0,93532.0,0.0773]
[1736477038955,0.15,93537.0,93532.0,0.0803]
[1736477039695,0.15,93535.0,93532.0,0.0803]
[1736477040377,0.15,93535.0,93532.0,0.0773]
[1736477040756,0.15,93535.0,93532.0,0.0813]
[1736477040956,0.15,93533.0,93532.0,0.0813]
[1736477041179,0.15106884,93533.0,93532.0,0.003]
[1736477041519,0.15275008,93533.0,93532.0,0.002]
[1736477041855,0.15275008,93533.0,93532.0,0.005]
[1736477042283,0.235692,93533.0,93519.0,0.1225]
[1736477042439,0.15,93521.0,93519.0,0.1225]
[1736477042641,0.15,93521.0,93520.0,0.00198359]
[1736477042843,0.15,93521.0,93519.0,0.1225]
[1736477043909,0.363857,93520.0,93519.0,0.1225]
[1736477044326,0.363857,93520.0,93519.0,0.1265]
[1736477044848,0.42166907,93520.0,93519.0,0.12848369]
[1736477045040,0.42166907,93520.0,93519.0,0.12448369]
[1736477045270,0.42166907,93520.0,93519.0,0.12648369]
[1736477045487,0.42166907,93520.0,93519.0,0.1295]
[1736477045863,0.42166907,93520.0,93519.0,0.13148369]
[1736477046892,0.363857,93520.0,93519.0,0.13148369]
[1736477047322,0.15,93520.0,93519.0,0.13148369]
[1736477047736,0.0220799,93523.0,93519.0,0.05648369]
[1736477047955,0.213831,93532.0,93520.0,0.08046914]
[1736477048379,0.15,93531.0,93522.0,0.0794]
[1736477048556,0.15,93531.0,93523.0,0.00106914]
[1736477048731,0.15,93531.0,93522.0,0.08046914]
[1736477048928,0.15,93531.0,93524.0,0.00199494]
[1736477049131,0.15,93531.0,93525.0,0.00199483]
[1736477049717,0.15,93531.0,93526.0,0.00199473]
[1736477049922,0.15,93531.0,93522.0,0.08046914]
[1736477050343,0.15,93529.0,93523.0,0.00199504]
[1736477050570,0.213839,93528.0,93523.0,0.00199504]
[1736477050724,0.15,93527.0,93523.0,0.00199504]
[1736477051977,0.15,93528.0,93523.0,0.00499504]
[1736477052406,0.15,93528.0,93523.0,0.003]
[1736477052629,0.15,93528.0,93523.0,0.004]
[1736477053223,0.15,93528.0,93523.0,0.001]
[1736477053377,0.15,93528.0,93523.0,0.003]
[1736477053820,0.15,93528.0,93523.0,0.002]
[1736477054221,0.15,93528.0,93523.0,0.003]
[1736477054429,0.213841,93527.0,93523.0,0.003]
[1736477055217,0.213841,93527.0,93523.0,0.002]
[1736477055768,0.213841,93527.0,93523.0,0.003]
[1736477056102,0.15,93528.0,93523.0,0.003]
[1736477056298,0.15,93528.0,93523.0,0.001]
[1736477056878,0.213841,93527.0,93523.0,0.004]
[1736477057054,0.213841,93527.0,93522.0,0.0794]
[1736477057260,0.213841,93527.0,93523.0,0.003]
[1736477057650,0.213841,93527.0,93523.0,0.002]
[1736477058093,0.213841,93527.0,93523.0,0.001]
[1736477059645,0.15,93528.0,93523.0,0.001]
[1736477059843,0.15,93528.0,93523.0,0.004]
[1736477060468,0.15,93528.0,93523.0,0.001]
[1736477060650,0.15,93528.0,93522.0,0.0794]
[1736477060852,0.15,93528.0,93523.0,0.003]
[1736477061588,0.213841,93527.0,93523.0,0.002]
[1736477061746,0.15,93524.0,93523.0,0.002]
[1736477061958,0.15,93524.0,93523.0,0.00388258]
[1736477062163,0.15041101,93524.0,93523.0,0.00388258]
[1736477062729,0.15041101,93524.0,93523.0,0.00188258]
[1736477062940,0.15041101,93524.0,93522.0,0.001]
[1736477063166,0.363851,93523.0,93522.0,0.001]
[1736477063317,0.42207211,93523.0,93522.0,0.001]
[1736477063661,0.363862,93518.0,93517.0,0.0767]
[1736477064287,0.15,93518.0,93517.0,0.0767]
[1736477065465,0.15,93518.0,93517.0,0.0777]
[1736477065665,0.15,93518.0,93517.0,0.07948574]
[1736477066300,0.15,93518.0,93517.0,0.08248574]
[1736477066506,0.15,93518.0,93517.0,0.0777]
[1736477067040,0.02155508,93523.0,93517.0,0.0807]
[1736477067252,0.02155508,93523.0,93517.0,0.0817]
[1736477067373,0.15,93524.0,93518.0,0.00178563]
[1736477067589,0.15,93524.0,93517.0,0.0767]
[1736477068001,0.15,93524.0,93517.0,0.0807]
[1736477068401,0.15,93522.0,93517.0,0.0797]
[1736477069215,0.15,93522.0,93517.0,0.0767]
[1736477069633,0.15,93522.0,93518.0,0.001]
[1736477069793,0.15,93522.0,93517.0,0.0767]
[1736477070338,0.15,93522.0,93517.0,0.0787]
[1736477070468,0.15,93524.0,93517.0,0.0777]
[1736477070673,0.15,93522.0,93518.0,0.002]
[1736477071208,0.15,93522.0,93517.0,0.0777]
[1736477071438,0.15,93522.0,93517.0,0.0767]
[1736477071787,0.213851,93523.0,93517.0,0.0767]
[1736477071788,0.20992708,93524.0,93517.0,0.0767]
[1736477071997,0.15,93524.0,93517.0,0.0767]
[1736477072556,0.213862,93518.0,93517.0,0.0767]
[1736477072756,0.363862,93518.0,93517.0,0.0767]
[1736477072975,0.15,93518.0,93517.0,0.0767]
[1736477073384,0.15,93518.0,93517.0,0.0797]
[1736477073806,0.15,93518.0,93517.0,0.07848574]
[1736477074153,0.15,93518.0,93517.0,0.08148574]
[1736477074365,0.15,93518.0,93517.0,0.08248574]
[1736477076017,0.1863851,93518.0,93517.0,0.00578574]
[1736477076402,0.15,93518.0,93517.0,0.004]
[1736477076534,0.15,93518.0,93517.0,0.00578574]
[1736477077560,0.15041186,93518.0,93517.0,0.004]
[1736477079181,0.15041186,93518.0,93517.0,0.003]
[1736477079182,0.00041186,93518.0,93517.0,0.003]
[1736477079389,0.2817739,93547.0,93518.0,0.049]
[1736477079390,0.213825,93535.0,93518.0,0.049]
[1736477079598,0.15,93534.0,93520.0,0.0758]
[1736477079807,0.15,93534.0,93521.0,0.00106913]
[1736477080010,0.213825,93535.0,93521.0,0.00285724]
[1736477080205,0.15,93534.0,93521.0,0.00285724]
[1736477080610,0.057764,93533.0,93521.0,0.00285724]
[1736477081233,0.057764,93533.0,93521.0,0.00385724]
[1736477081485,0.057764,93533.0,93521.0,0.00585724]
[1736477081816,0.057764,93533.0,93521.0,0.00385724]
[1736477081989,0.057764,93533.0,93521.0,0.00278811]
[1736477082190,0.15,93534.0,93521.0,0.00278811]
[1736477082191,0.06571471,93532.0,93521.0,0.00278811]
[1736477082621,0.06571471,93532.0,93521.0,0.00178811]
[1736477083047,0.06571471,93532.0,93521.0,0.00278811]
[1736477083182,0.06571471,93532.0,93521.0,0.00578811]
[1736477083552,0.06571471,93532.0,93521.0,0.00178811]
[1736477083676,0.02385266,93531.0,93521.0,0.00278811]
[1736477083880,0.02385266,93531.0,93521.0,0.00578811]
[1736477084592,0.02385266,93531.0,93521.0,0.00478811]
[1736477084773,0.02385266,93531.0,93521.0,0.00178811]
[1736477084945,0.02385266,93531.0,93521.0,0.00578811]
[1736477086091,0.02385266,93531.0,93521.0,0.00678811]
[1736477087749,0.02306442,93537.0,93521.0,0.00678811]
[1736477088976,0.02306442,93537.0,93521.0,0.00578811]
[1736477089752,0.15,93535.0,93521.0,0.00578811]
[1736477089979,0.00106884,93534.0,93521.0,0.00178811]
[1736477090184,0.2290243,93533.0,93521.0,0.00278811]
[1736477090397,0.2290243,93533.0,93522.0,0.00178172]
[1736477090803,0.213838,93529.0,93522.0,0.00178172]
[1736477091118,0.213838,93529.0,93521.0,0.001]
[1736477091371,0.213838,93529.0,93520.0,0.0758]
[1736477091582,0.213838,93529.0,93521.0,0.003]
[1736477092391,0.213838,93529.0,93521.0,0.004]
[1736477092941,0.213838,93529.0,93520.0,0.0758]
[1736477093142,0.213838,93529.0,93521.0,0.002]
[1736477093381,0.25327012,93529.0,93522.0,0.005]
[1736477093583,0.25327012,93529.0,93521.0,0.002]
[1736477093936,0.213849,93524.0,93521.0,0.005]
[1736477096106,0.213849,93524.0,93514.0,0.0773]
[1736477096257,0.213849,93524.0,93521.0,0.003]
[1736477097067,0.213849,93524.0,93514.0,0.0773]
[1736477097481,0.0427687,93523.0,93521.0,0.002]
[1736477097907,0.213849,93524.0,93521.0,0.002]
[1736477099104,0.213849,93524.0,93514.0,0.0783]
[1736477099511,0.213849,93524.0,93514.0,0.0793]
[1736477099739,0.213849,93524.0,93521.0,0.001]
[1736477100124,0.213849,93524.0,93521.0,0.003]
[1736477100527,0.213849,93524.0,93514.0,0.0773]
[1736477100714,0.2566177,93524.0,93514.0,0.0803]
[1736477101084,0.2566177,93524.0,93514.0,0.0783]
[1736477101701,0.213841,93527.0,93514.0,0.0783]
[1736477101951,0.15,93528.0,93514.0,0.0773]
[1736477102158,0.15,93528.0,93515.0,0.00177765]
[1736477102384,0.02158203,93533.0,93521.0,0.001]
[1736477102634,0.02158203,93533.0,93524.0,0.08]
[1736477102837,0.213802,93545.0,93526.0,0.08]
[1736477103064,0.02000217,93537.0,93526.0,0.08]
[1736477103271,0.213802,93545.0,93527.0,0.08088948]
[1736477103484,0.213802,93545.0,93528.0,0.0791]
[1736477103688,0.21379,93550.0,93530.0,0.0791]
[1736477103885,0.15,93547.0,93531.0,0.213832]
[1736477104102,0.001,93545.0,93532.0,0.0791]
[1736477104527,0.001,93545.0,93533.0,0.00178885]
[1736477104742,0.213803,93544.0,93533.0,0.00178885]
[1736477104942,0.15,93543.0,93533.0,0.00178885]
[1736477105094,0.15,93543.0,93532.0,0.0791]
[1736477106359,0.15,93543.0,93533.0,0.003]
[1736477106565,0.15,93543.0,93532.0,0.0801]
[1736477106866,0.15,93543.0,93532.0,0.0831]
[1736477107076,0.213793,93548.0,93532.0,0.0831]
[1736477107304,0.213793,93548.0,93532.0,0.0801]
[1736477107516,0.15,93547.0,93534.0,0.0791]
[1736477107721,0.15,93547.0,93535.0,0.261823]
[1736477107931,0.02241064,93551.0,93537.0,0.213819]
[1736477108223,0.02241064,93551.0,93540.0,0.292912]
[1736477108428,0.02241064,93551.0,93541.0,0.0791]
[1736477108635,0.02241064,93551.0,93543.0,0.045]
[1736477108842,0.02241064,93551.0,93544.0,0.0787]
[1736477109067,0.02241064,93551.0,93544.0,0.08047619]
[1736477109479,0.02241064,93551.0,93544.0,0.08062293]
[1736477110334,0.02241064,93551.0,93545.0,0.2138]
[1736477110510,0.02241064,93551.0,93545.0,0.0787]
[1736477110903,0.02241064,93551.0,93546.0,0.00177599]
[1736477111101,0.02241064,93551.0,93546.0,0.00234705]
[1736477111324,0.02241064,93551.0,93547.0,0.0787]
[1736477111702,0.02241064,93551.0,93548.0,0.00234734]
[1736477112125,0.02241064,93551.0,93547.0,0.0787]
[1736477112333,0.02241064,93551.0,93549.0,0.00234721]
[1736477112571,0.02241064,93551.0,93548.0,0.00234734]
[1736477112778,0.02241064,93551.0,93550.0,0.08104707]
[1736477113001,0.00244,93551.0,93550.0,0.22799976]
[1736477113182,0.213718,93581.0,93566.0,0.0787]
[1736477113420,0.213718,93581.0,93568.0,0.0787]
[1736477113533,0.017863,93581.0,93569.0,0.03408677]
[1736477113732,0.18958432,93582.0,93570.0,0.0815112]
[1736477113985,0.18958432,93582.0,93578.0,0.0787]
[1736477113986,0.01788985,93582.0,93578.0,0.0787]
[1736477114194,0.0001706,93584.0,93579.0,0.00340989]
[1736477114361,0.0001706,93584.0,93582.0,0.0787]
[1736477114585,0.0001706,93584.0,93583.0,0.08257741]
[1736477115073,7.716e-05,93584.0,93583.0,0.08257741]
[1736477115269,7.716e-05,93584.0,93583.0,0.08272415]
[1736477115633,7.716e-05,93584.0,93583.0,0.13824136]
[1736477115867,7.716e-05,93584.0,93583.0,0.08272415]
[1736477116243,7.716e-05,93584.0,93583.0,0.08291512]
[1736477116443,7.716e-05,93584.0,93583.0,0.29662912]
[1736477116818,7.716e-05,93584.0,93583.0,0.08184674]
[1736477116981,7.716e-05,93584.0,93583.0,0.08291514]
[1736477117763,7.716e-05,93584.0,93583.0,0.12607915]
[1736477118103,7.716e-05,93584.0,93583.0,0.09191514]
[1736477121146,7.716e-05,93584.0,93583.0,0.2434149]
[1736477121348,0.0001704,93587.0,93586.0,0.023]
[1736477121562,0.0001704,93587.0,93586.0,0.25656799]
[1736477121764,0.0001704,93587.0,93586.0,0.25549976]
[1736477121978,0.0001704,93587.0,93586.0,0.46920676]
[1736477122183,0.0001704,93587.0,93586.0,0.1282]
[1736477122395,0.0001704,93587.0,93586.0,0.12926832]
[1736477122623,0.0001704,93587.0,93586.0,0.13226832]
[1736477123029,0.0001704,93587.0,93586.0,0.18688153]
[1736477123234,0.0001704,93587.0,93586.0,0.19588153]
[1736477123664,0.0001704,93587.0,93586.0,0.14126832]
[1736477123871,0.0001704,93587.0,93586.0,0.1402]
[1736477124482,0.0001704,93587.0,93586.0,0.14126837]
[1736477124678,0.0001704,93587.0,93586.0,0.26856813]
[1736477124885,0.0001704,93587.0,93586.0,0.26749976]
[1736477125507,0.0001704,93587.0,93586.0,0.1402]
[1736477125713,0.0001704,93587.0,93586.0,0.14126832]
[1736477125959,0.0001704,93587.0,93586.0,0.13226832]
[1736477126169,0.0001704,93587.0,93586.0,0.1282]
[1736477126369,0.0001704,93587.0,93586.0,0.1402]
[1736477126567,0.0001704,93587.0,93586.0,0.1312]
[1736477127020,0.0001704,93587.0,93586.0,0.1402]
[1736477127969,0.0001704,93587.0,93586.0,0.1372]
[1736477128340,0.0001704,93587.0,93586.0,0.1402]
[1736477129136,0.0001704,93587.0,93586.0,0.14126838]
[1736477130556,0.0001704,93587.0,93586.0,0.17756519]
[1736477130934,0.0001704,93587.0,93586.0,0.14126838]
[1736477131916,0.0001704,93587.0,93586.0,0.26856814]
[1736477132119,0.0001704,93592.0,93590.0,0.1]
[1736477132338,0.0001704,93592.0,93591.0,0.35326792]
[1736477132537,0.0001704,93592.0,93591.0,0.35219976]
[1736477133162,0.0001704,93592.0,93591.0,0.45219976]
[1736477133778,0.0001704,93592.0,93591.0,0.67489476]
[1736477134789,0.0001704,93592.0,93591.0,0.67989476]
[1736477135270,0.0001704,93592.0,93591.0,0.67489476]
[1736477135681,0.01819239,93616.0,93598.0,0.213679]
[1736477135880,0.01819239,93616.0,93598.0,0.41607876]
[1736477136084,0.15,93612.0,93598.0,0.0751]
[1736477136285,0.213657,93608.0,93598.0,0.0751]
[1736477137303,0.213657,93608.0,93598.0,0.0841]
[1736477137504,0.01769336,93601.0,93598.0,0.0751]
[1736477137767,0.01769336,93601.0,93598.0,0.10903632]
[1736477137940,0.01769336,93601.0,93598.0,0.0751]
[1736477138984,0.01769336,93601.0,93598.0,0.0841]
[1736477139211,0.01769336,93601.0,93598.0,0.0881]
[1736477140086,0.15,93614.0,93598.0,0.0881]
[1736477140306,0.01843812,93609.0,93598.0,0.08916824]
[1736477140536,0.0001706,93609.0,93598.0,0.262268]
[1736477140802,0.0001706,93609.0,93598.0,0.26119976]
[1736477141524,0.0001706,93609.0,93598.0,0.25719976]
[1736477141654,0.0001706,93609.0,93598.0,0.26119976]
[1736477142054,0.0001706,93609.0,93598.0,0.25219976]
[1736477142313,0.0001706,93609.0,93598.0,0.25719976]
[1736477142662,0.0001706,93609.0,93598.0,0.26119976]
[1736477142939,0.0001706,93609.0,93598.0,0.1339]
[1736477143184,0.0001706,93609.0,93598.0,0.13496819]
[1736477143437,0.15,93608.0,93598.0,0.08916819]
[1736477143687,0.1501704,93603.0,93598.0,0.013]
[1736477143951,0.01793375,93601.0,93598.0,0.013]
[1736477145018,0.01793375,93601.0,93598.0,0.009]
[1736477145315,0.01793375,93601.0,93598.0,0.004]
[1736477145737,0.01793375,93601.0,93598.0,0.013]
[1736477146447,0.01793375,93601.0,93591.0,0.0824]
[1736477146768,0.01793375,93601.0,93598.0,0.01]
[1736477147214,0.18836488,93599.0,93598.0,0.01]
[1736477147416,0.1501706,93599.0,93598.0,0.01]
[1736477147972,0.1501706,93599.0,93598.0,0.008]
[1736477148993,0.0001706,93599.0,93598.0,0.008]
[1736477149234,0.0001706,93599.0,93598.0,0.01]
[1736477150600,0.2138476,93599.0,93598.0,0.01]
[1736477150983,0.24229989,93599.0,93598.0,0.01]
[1736477151592,0.2138476,93599.0,93598.0,0.01]
[1736477152972,0.0001706,93599.0,93598.0,0.01]
[1736477153391,0.0001706,93599.0,93598.0,0.0858]
[1736477153626,0.0001706,93599.0,93598.0,0.1228]
[1736477154250,0.0001706,93599.0,93598.0,0.1208]
[1736477154430,0.0001706,93599.0,93598.0,0.15542383]
[1736477154981,0.0011706,93599.0,93598.0,0.28272359]
[1736477155189,0.0011706,93599.0,93598.0,0.28165539]
[1736477155601,0.0011706,93599.0,93598.0,0.28365539]
[1736477155807,0.0011706,93599.0,93598.0,0.25009976]
[1736477156009,0.0001706,93599.0,93598.0,0.1208]
[1736477156211,0.0001706,93599.0,93598.0,0.1288]
[1736477156631,0.0001706,93599.0,93598.0,0.1208]
[1736477156854,0.0001706,93599.0,93598.0,0.1298]
[1736477157429,0.0001706,93599.0,93598.0,0.1338]
[1736477157926,0.0001706,93599.0,93598.0,0.1298]
[1736477158120,0.0001706,93599.0,93598.0,0.1208]
[1736477158378,0.0001706,93599.0,93598.0,0.1228]
[1736477158604,0.0001706,93599.0,93598.0,0.1318]
[1736477159646,0.0001706,93599.0,93598.0,0.16723963]
[1736477161340,0.0001706,93599.0,93598.0,0.27260764]
[1736477161543,0.0001706,93599.0,93598.0,0.39453939]
[1736477162160,0.0001706,93599.0,93598.0,0.39253939]
[1736477162370,0.0001704,93603.0,93602.0,0.1]
[1736477162577,0.0001704,93603.0,93602.0,0.35836779]
[1736477162781,0.0001704,93603.0,93602.0,0.35729976]
[1736477163472,0.0001704,93603.0,93602.0,0.36524932]
[1736477163701,0.0001704,93603.0,93602.0,1.00714932]
[1736477163906,0.0001706,93609.0,93608.0,0.8951]
[1736477164109,0.0001706,93609.0,93608.0,0.99939976]
[1736477164530,0.0001706,93609.0,93608.0,1.00734932]
[1736477164939,0.219627,93665.0,93608.0,1.00734932]
[1736477164940,0.21355,93655.0,93617.0,0.543836]
[1736477165180,0.00784,93671.0,93617.0,1.27338955]
[1736477165368,0.0063,93673.0,93617.0,1.27338955]
[1736477165510,0.0063,93673.0,93617.0,1.28133911]
[1736477165708,0.213553,93654.0,93617.0,1.28133911]
[1736477165918,0.01677531,93649.0,93617.0,1.28133911]
[1736477166144,0.00065864,93618.0,93617.0,1.29033911]
[1736477166345,0.00065864,93618.0,93617.0,1.28633911]
[1736477166748,0.00065864,93618.0,93617.0,1.18633911]
[1736477166956,0.00065864,93618.0,93617.0,1.28633911]
[1736477167528,0.00065864,93618.0,93617.0,1.27849911]
[1736477167732,0.00065864,93618.0,93617.0,1.09787576]
[1736477167928,0.00065864,93618.0,93617.0,1.11187576]
[1736477168337,0.00065864,93618.0,93617.0,1.01187576]
[1736477168538,0.00065864,93618.0,93617.0,1.00687576]
[1736477168793,0.00065864,93618.0,93617.0,1.02587576]
[1736477169196,0.00065864,93618.0,93617.0,1.03487576]
[1736477169402,0.00065864,93618.0,93617.0,0.46213576]
[1736477169610,0.00065864,93618.0,93617.0,0.1442]
[1736477170844,0.00065864,93618.0,93617.0,0.096]
[1736477171054,0.00065864,93618.0,93617.0,0.014]
[1736477171935,0.00065864,93618.0,93611.0,0.00106811]
[1736477172145,0.00065864,93618.0,93617.0,0.003]
[1736477172357,0.00065864,93618.0,93617.0,0.012]
[1736477173898,0.00065864,93618.0,93617.0,0.06556485]
[1736477174515,0.213593,93636.0,93617.0,0.06556485]
[1736477174720,0.213593,93636.0,93617.0,0.01021478]
[1736477174927,0.213593,93636.0,93618.0,0.213634]
[1736477175130,0.213593,93636.0,93619.0,0.00106801]
[1736477175330,0.213593,93636.0,93618.0,0.00106801]
[1736477175540,0.22901267,93638.0,93620.0,0.00106801]
[1736477176031,0.22901267,93638.0,93617.0,0.00914674]
[1736477176032,0.2136,93633.0,93618.0,0.00106801]
[1736477176292,0.213626,93622.0,93619.0,0.002]
[1736477176493,0.213626,93622.0,93617.0,0.00314674]
[1736477176931,0.213626,93622.0,93620.0,0.001]
[1736477177141,0.427252,93622.0,93620.0,0.001]
[1736477177346,0.213626,93622.0,93617.0,0.00014674]
[1736477178199,0.427252,93622.0,93617.0,0.00014674]
[1736477178614,0.4913385,93622.0,93617.0,0.00014674]
[1736477178833,0.4913385,93622.0,93619.0,0.003]
[1736477179009,0.4913385,93622.0,93617.0,0.00014674]
[1736477179010,0.427252,93622.0,93617.0,0.00014674]
[1736477179432,0.427252,93622.0,93617.0,0.00314674]
[1736477180699,0.15,93619.0,93617.0,0.00314674]
[1736477181634,0.15,93619.0,93617.0,0.00014674]
[1736477181769,0.15,93622.0,93617.0,0.00014674]
[1736477181983,0.363634,93618.0,93617.0,0.00514674]
[1736477182183,0.363634,93618.0,93617.0,0.00614674]
[1736477182634,0.22859942,93628.0,93617.0,0.00614674]
[1736477182834,0.22859942,93628.0,93617.0,0.08314674]
[1736477183273,0.22859942,93628.0,93617.0,0.08814674]
[1736477183490,0.15,93625.0,93618.0,0.00881467]
[1736477183712,0.01498642,93628.0,93618.0,0.00881467]
[1736477184008,0.21359,93638.0,93619.0,0.21469808]
[1736477184189,0.03814,93655.0,93617.0,0.08414674]
[1736477184393,0.03814,93655.0,93620.0,0.00106797]
[1736477184394,0.21359,93637.0,93620.0,0.00106797]
[1736477184680,0.213603,93632.0,93620.0,0.00106797]
[1736477184924,0.213603,93632.0,93617.0,0.08414674]
[1736477185132,0.21359,93637.0,93618.0,0.213634]
[1736477185331,0.21359,93637.0,93619.0,0.05576877]
[1736477185533,0.21359,93637.0,93620.0,0.00106797]
[1736477185947,0.21359,93637.0,93620.0,0.21469697]
[1736477186114,0.21359,93637.0,93620.0,0.213629]
[1736477186321,0.21359,93637.0,93622.0,0.213625]
[1736477186525,0.0158028,93640.0,93623.0,0.00106797]
[1736477187162,0.213586,93639.0,93623.0,0.00106797]
[1736477187580,0.0158028,93640.0,93624.0,0.21362]
[1736477187795,0.0158028,93640.0,93626.0,0.023]
[1736477187796,0.0001704,93640.0,93626.0,0.023]
[1736477188002,0.0001704,93640.0,93639.0,0.293686]
[1736477188633,0.0001704,93640.0,93639.0,0.0801]
[1736477189693,0.0001704,93640.0,93639.0,0.0861]
[1736477190999,0.0001704,93640.0,93639.0,0.0881]
[1736477192467,0.0001704,93640.0,93639.0,0.09701678]
[1736477192644,0.0001704,93640.0,93639.0,0.0881]
[1736477194138,0.0001704,93640.0,93639.0,0.08716773]
[1736477194497,0.0001704,93640.0,93639.0,0.08916773]
[1736477194698,0.0001704,93640.0,93639.0,0.08316773]
[1736477194949,0.0001704,93640.0,93639.0,0.08116773]
[1736477195157,0.0001704,93640.0,93639.0,0.08716773]
[1736477195782,0.0001704,93640.0,93639.0,0.08916773]
[1736477196103,0.0001704,93640.0,93639.0,0.08316773]
[1736477196301,0.0001704,93640.0,93639.0,0.09016773]